fUST/lending_fUST_20241213
["ID","MTS","AMOUNT","RATE_DAILY","PERIOD"]
[345162269,1734073851627,-1226.78,0.00027397,7]
[345162271,1734073851645,-500.0,0.00027397,7]
[345162273,1734073851654,-500.0,0.00027397,7]
[345162275,1734073851663,-555.96,0.00027397,7]
[345162277,1734073851673,-500.0,0.00027397,7]
[345162279,1734073851683,-403.93101503,0.00027397,7]
[345162281,1734073851692,-500.0,0.00027397,7]
[345162283,1734073851700,-934.39,0.00027397,7]
[345162285,1734073851710,-500.0,0.00027397,7]
[345162287,1734073851719,-500.0,0.00027397,7]
[345162289,1734073851729,-757.27,0.00027397,7]
[345162291,1734073851738,-1702.35,0.00027397,7]
[345162293,1734073851748,-500.0,0.00027397,7]
[345162295,1734073851757,-500.0,0.00027397,7]
[345162297,1734073851766,-694.34,0.00027397,7]
[345162299,1734073851775,-737.45,0.00027397,7]
[345162301,1734073851785,-851.51,0.00027397,7]
[345162303,1734073851794,-2417.87,0.00027397,7]
[345162305,1734073851803,-500.0,0.00027397,7]
[345162307,1734073851813,-991.68,0.00027397,7]
[345162309,1734073851822,-1353.92,0.00027397,7]
[345162312,1734073851832,-516.48,0.00027397,7]
[345162314,1734073851842,-2043.23,0.00027397,7]
[345162316,1734073851851,-500.0,0.00027397,7]
[345162318,1734073851860,-500.0,0.00027397,7]
[345162320,1734073851879,-500.0,0.00027397,7]
[345162321,1734073851888,-500.0,0.00027397,7]
[345162324,1734073851897,-872.8,0.00027397,7]
[345162326,1734073851906,-994.67,0.00027397,7]
[345162327,1734073851915,-771.58,0.00027397,7]
[345162330,1734073851924,-1208.81,0.00027397,7]
[345162332,1734073851934,-999.45,0.00027397,7]
[345162333,1734073851944,-1400.1,0.00027397,7]
[345162335,1734073851953,-513.93982444,0.00027397,7]
[345162337,1734073851962,-662.17,0.00027397,7]
[345162339,1734073851971,-500.0,0.00027397,7]
[345162341,1734073851980,-1632.88,0.00027397,7]
[345162343,1734073851989,-500.0,0.00027397,7]
[345162345,1734073851998,-502.27250502,0.00027397,7]
[345162347,1734073852008,-500.0,0.00027397,7]
[345162349,1734073852017,-500.0,0.00027397,7]
[345162352,1734073852027,-3598.79,0.00027397,7]
[345162354,1734073852037,-1161.27,0.00027397,7]
[345162356,1734073852046,-500.0,0.00027397,7]
[345162357,1734073852055,-500.0,0.00027397,7]
[345162359,1734073852064,-500.0,0.00027397,7]
[345162362,1734073852074,-761.46,0.00027397,7]
[345162363,1734073852085,-2849.29,0.00027397,7]
[345162366,1734073852094,-500.0,0.00027397,7]
[345162368,1734073852104,-500.0,0.00027397,7]
[345162370,1734073852118,-500.0,0.00027397,7]
[345162371,1734073852127,-500.0,0.00027397,7]
[345162374,1734073852137,-500.0,0.00027397,7]
[345162376,1734073852147,-500.0,0.00027397,7]
[345162378,1734073852156,-1360.35,0.00027397,7]
[345162379,1734073852165,-830.13,0.00027397,7]
[345162381,1734073852174,-500.0,0.00027397,7]
[345162384,1734073852184,-180.286945,0.00027397,7]
[345162386,1734073852194,-500.0,0.00027397,7]
[345162388,1734073852203,-180.286945,0.00027397,7]
[345162390,1734073852213,-552.29,0.00027397,7]
[345162392,1734073852222,-180.286945,0.00027397,7]
[345162394,1734073852231,-1830.05,0.00027397,7]
[345162396,1734073852240,-500.0,0.00027397,7]
[345162398,1734073852249,-500.0,0.00027397,7]
[345162400,1734073852258,-2352.18,0.00027397,7]
[345162402,1734073852267,-665.66,0.00027397,2]
[345162404,1734073852277,-180.286945,0.00027397,7]
[345162406,1734073852286,-180.286945,0.00027397,7]
[345162408,1734073852296,-180.286951,0.00027397,7]
[345162410,1734073852305,-10350.06,0.00027397,7]
[345162412,1734073852315,-500.0,0.00027397,7]
[345162414,1734073852327,-500.0,0.00027397,7]
[345162416,1734073852337,-1088.5,0.00027397,7]
[345162418,1734073852345,-239.42307745,0.00027397,7]
[345162420,1734073852355,-884.8,0.00027397,7]
[345162422,1734073852367,-1721.54,0.00027397,7]
[345162424,1734073852376,-2055.1,0.00027397,7]
[345162426,1734073852385,-500.0,0.00027397,7]
[345162428,1734073852394,-524.23,0.00027397,7]
[345162430,1734073852404,-500.0,0.00027397,7]
[345162432,1734073852413,-548.1865794,0.00027397,7]
[345162434,1734073852422,-500.0,0.00027397,7]
[345162436,1734073852431,-500.0,0.00027397,7]
[345162438,1734073852440,-1393.08,0.00027397,7]
[345162440,1734073852449,-2000.0,0.00027397,7]
[345162442,1734073852458,-759.46,0.00027397,7]
[345162444,1734073852467,-1231.64,0.00027397,7]
[345162446,1734073852477,-500.0,0.00027397,7]
[345162448,1734073852486,-500.0,0.00027397,7]
[345162450,1734073852495,-501.25336313,0.00027397,7]
[345162452,1734073852504,-1043.14,0.00027397,7]
[345162454,1734073852512,-500.0,0.00027397,7]
[345162456,1734073852522,-500.0,0.00027397,7]
[345162458,1734073852531,-500.0,0.00027397,7]
[345162460,1734073852540,-500.0,0.00027397,7]
[345162462,1734073852549,-500.0,0.00027397,7]
[345162464,1734073852557,-757.36,0.00027397,7]
[345162466,1734073852567,-597.21,0.00027397,7]
[345162468,1734073852575,-855.14,0.00027397,7]
[345162470,1734073852585,-395.96616287,0.00027397,7]
[345162472,1734073852594,-500.0,0.00027397,7]
[345162474,1734073852603,-774.23,0.00027397,7]
[345162476,1734073852612,-212.809091,0.00027397,7]
[345162478,1734073852623,-500.0,0.00027397,7]
[345162480,1734073852632,-212.809091,0.00027397,7]
[345162482,1734073852641,-212.809091,0.00027397,7]
[345162484,1734073852650,-500.0,0.00027397,7]
[345162486,1734073852659,-734.46,0.00027397,7]
[345162488,1734073852669,-500.0,0.00027397,7]
[345162490,1734073852678,-223.4825047,0.00027397,7]
[345162492,1734073852687,-212.809091,0.00027397,7]
[345162494,1734073852697,-212.809091,0.00027397,7]
[345162496,1734073852707,-500.0,0.00027397,7]
[345162498,1734073852716,-212.809094,0.00027397,7]
[345162500,1734073852726,-500.0,0.00027397,7]
[345162502,1734073852735,-500.0,0.00027397,7]
[345162504,1734073852745,-500.0,0.00027397,7]
[345162506,1734073852754,-500.0,0.00027397,7]
[345162508,1734073852763,-544.56,0.00027397,7]
[345162510,1734073852773,-500.0,0.00027397,7]
[345162512,1734073852782,-500.0,0.00027397,7]
[345162514,1734073852791,-500.0,0.00027397,7]
[345162516,1734073852800,-288.5594505,0.00027397,7]
[345162518,1734073852810,-500.0,0.00027397,7]
[345162520,1734073852819,-500.0,0.00027397,7]
[345162522,1734073852829,-617.73408463,0.00027397,7]
[345162525,1734073852840,-500.0,0.00027397,7]
[345162527,1734073852850,-500.0,0.00027397,7]
[345162529,1734073852859,-14673.87,0.00027397,7]
[345162531,1734073852872,-874.46,0.00027397,7]
[345162533,1734073852881,-571.74,0.00027397,7]
[345162535,1734073852890,-500.0,0.00027397,7]
[345162537,1734073852900,-500.0,0.00027397,7]
[345162539,1734073852910,-500.0,0.00027397,7]
[345162541,1734073852919,-500.0,0.00027397,7]
[345162543,1734073852928,-617.0,0.00027397,7]
[345162545,1734073852938,-1325.51,0.00027397,7]
[345162547,1734073852947,-504.26013055,0.00027397,7]
[345162549,1734073852956,-500.0,0.00027397,7]
[345162551,1734073852965,-500.0,0.00027397,7]
[345162553,1734073852975,-500.0,0.00027397,7]
[345162555,1734073852984,-500.0,0.00027397,7]
[345162557,1734073852994,-500.0,0.00027397,7]
[345162559,1734073853003,-500.0,0.00027397,7]
[345162561,1734073853012,-500.0,0.00027397,7]
[345162563,1734073853022,-500.0,0.00027397,7]
[345162565,1734073853031,-500.0,0.00027397,7]
[345162567,1734073853040,-500.0,0.00027397,7]
[345162569,1734073853049,-500.0,0.00027397,7]
[345162571,1734073853059,-500.0,0.00027397,7]
[345162573,1734073853068,-1057.12,0.00027397,7]
[345162575,1734073853077,-501.07537209,0.00027397,7]
[345162577,1734073853086,-500.0,0.00027397,7]
[345162579,1734073853095,-265.30314472,0.00027397,7]
[345162581,1734073853104,-2374.65,0.00027397,7]
[345162583,1734073853114,-151.0,0.00027397,7]
[345162585,1734073853124,-151.0,0.00027397,7]
[345162587,1734073853135,-500.0,0.00027397,7]
[345162589,1734073853145,-151.0,0.00027397,7]
[345162591,1734073853154,-151.0,0.00027397,7]
[345162593,1734073853163,-609.04,0.00027397,7]
[345162595,1734073853172,-151.0,0.00027397,7]
[345162597,1734073853181,-500.0,0.00027397,7]
[345162599,1734073853190,-199.413868,0.00027397,7]
[345162601,1734073853199,-500.0,0.00027397,7]
[345162603,1734073853208,-650.06,0.00027397,7]
[345162605,1734073853218,-500.0,0.00027397,7]
[345162607,1734073853227,-500.0,0.00027397,7]
[345162609,1734073853236,-466.86170618,0.00027397,7]
[345162611,1734073853246,-1403.98,0.00027397,7]
[345162613,1734073853256,-519.54167459,0.00027397,7]
[345162615,1734073853265,-500.0,0.00027397,7]
[345162617,1734073853275,-500.0,0.00027397,7]
[345162619,1734073853287,-238.81337705,0.00027397,7]
[345162621,1734073853296,-585.25,0.00027397,7]
[345162623,1734073853306,-1011.92,0.00027397,7]
[345162625,1734073853316,-649.55,0.00027397,7]
[345162627,1734073853325,-500.0,0.00027397,7]
[345162629,1734073853335,-500.0,0.00027397,2]
[345162631,1734073853346,-161.63334513,0.00027397,7]
[345162634,1734073853356,-500.0,0.00027397,7]
[345162636,1734073853368,-500.0,0.00027397,7]
[345162637,1734073853377,-500.0,0.00027397,7]
[345162639,1734073853387,-2099.54,0.00027397,7]
[345162641,1734073853397,-500.0,0.00027397,2]
[345162644,1734073853407,-750.37,0.00027397,7]
[345162646,1734073853417,-1649.58,0.00027397,7]
[345162648,1734073853426,-500.0,0.00027397,7]
[345162650,1734073853436,-1113.45,0.00027397,7]
[345162652,1734073853446,-500.0,0.00027397,7]
[345162654,1734073853458,-500.0,0.00027397,7]
[345162656,1734073853467,-503.01532772,0.00027397,7]
[345162658,1734073853476,-18649.54,0.00027397,7]
[345162660,1734073853486,-1520.43,0.00027397,7]
[345162662,1734073853497,-500.0,0.00027397,7]
[345162664,1734073853507,-500.0,0.00027397,7]
[345162666,1734073853516,-569.82,0.00027397,7]
[345162668,1734073853527,-802.05,0.00027397,7]
[345162670,1734073853536,-500.0,0.00027397,7]
[345162672,1734073853545,-500.0,0.00027397,7]
[345162674,1734073853554,-500.0,0.00027397,7]
[345162676,1734073853564,-1754.12,0.00027397,7]
[345162678,1734073853573,-500.0,0.00027397,7]
[345162680,1734073853583,-2347.12,0.00027397,7]
[345162682,1734073853593,-500.0,0.00027397,7]
[345162684,1734073853604,-500.0,0.00027397,7]
[345162686,1734073853618,-657.49,0.00027397,7]
[345162688,1734073853629,-500.0,0.00027397,7]
[345162690,1734073853640,-151.0,0.00027397,7]
[345162707,1734073853650,-502.01559329,0.00027397,7]
[345162709,1734073853805,-151.0,0.00027397,7]
[345162712,1734073853815,-286.180956,0.00027397,7]
[345162714,1734073853825,-500.0,0.00027397,7]
[345162716,1734073853834,-500.0,0.00027397,7]
[345162718,1734073853843,-500.0,0.00027397,7]
[345162720,1734073853853,-503.15985557,0.00027397,7]
[345162722,1734073853864,-1837.67,0.00027397,7]
[345162724,1734073853876,-500.0,0.00027397,7]
[345162725,1734073853885,-500.0,0.00027397,7]
[345162728,1734073853895,-500.0,0.00027397,7]
[345162730,1734073853904,-1076.97,0.00027397,7]
[345162732,1734073853913,-1669.83,0.00027397,7]
[345162733,1734073853922,-500.0,0.00027397,7]
[345162736,1734073853932,-805.2,0.00027397,7]
[345162738,1734073853942,-500.0,0.00027397,7]
[345162740,1734073853951,-7567.01,0.00027397,7]
[345162742,1734073853961,-500.0,0.00027397,7]
[345162744,1734073853970,-500.0,0.00027397,7]
[345162746,1734073853980,-5241.44,0.00027397,7]
[345162748,1734073853989,-1014.65,0.00027397,7]
[345162750,1734073853998,-637.87,0.00027397,7]
[345162752,1734073854008,-500.0,0.00027397,7]
[345162754,1734073854018,-3845.18,0.00027397,7]
[345162756,1734073854028,-613.66,0.00027397,7]
[345162758,1734073854038,-556.39,0.00027397,7]
[345162760,1734073854048,-500.0,0.00027397,7]
[345162762,1734073854057,-500.0,0.00027397,7]
[345162764,1734073854066,-500.0,0.00027397,7]
[345162766,1734073854076,-500.0,0.00027397,7]
[345162768,1734073854085,-3110.15,0.00027397,7]
[345162770,1734073854095,-500.0,0.00027397,7]
[345162772,1734073854104,-500.0,0.00027397,7]
[345162774,1734073854119,-1541.34,0.00027397,7]
[345162776,1734073854129,-500.0,0.00027397,7]
[345162778,1734073854138,-500.0,0.00027397,7]
[345162780,1734073854147,-500.0,0.00027397,7]
[345162782,1734073854156,-513.11,0.00027397,7]
[345162784,1734073854165,-500.0,0.00027397,7]
[345162786,1734073854174,-500.0,0.00027397,7]
[345162788,1734073854183,-500.0,0.00027397,2]
[345162790,1734073854192,-500.0,0.00027397,7]
[345162792,1734073854203,-500.0,0.00027397,7]
[345162794,1734073854213,-1760.13,0.00027397,7]
[345162796,1734073854222,-500.0,0.00027397,7]
[345162798,1734073854231,-2152.36,0.00027397,7]
[345162800,1734073854241,-844.94,0.00027397,7]
[345162802,1734073854250,-547.04520668,0.00027397,7]
[345162804,1734073854258,-500.0,0.00027397,7]
[345162806,1734073854267,-150.0,0.00027397,7]
[345162808,1734073854276,-500.0,0.00027397,7]
[345162810,1734073854285,-500.0,0.00027397,7]
[345162812,1734073854294,-500.0,0.00027397,7]
[345162814,1734073854304,-500.0,0.00027397,7]
[345162816,1734073854314,-500.0,0.00027397,7]
[345162818,1734073854323,-3513.32,0.00027397,7]
[345162820,1734073854333,-500.0,0.00027397,2]
[345162822,1734073854342,-1214.56,0.00027397,7]
[345162824,1734073854351,-794.79,0.00027397,7]
[345162826,1734073854360,-500.0,0.00027397,7]
[345162828,1734073854371,-500.0,0.00027397,7]
[345162830,1734073854380,-565.88,0.00027397,7]
[345162832,1734073854389,-777.95,0.00027397,7]
[345162834,1734073854399,-500.0,0.00027397,7]
[345162836,1734073854409,-500.0,0.00027397,7]
[345162838,1734073854418,-500.0,0.00027397,7]
[345162840,1734073854427,-500.0,0.00027397,7]
[345162842,1734073854436,-823.48,0.00027397,7]
[345162844,1734073854446,-6954.56,0.00027397,7]
[345162846,1734073854455,-500.0,0.00027397,7]
[345162849,1734073854465,-1447.45,0.00027397,7]
[345162851,1734073854474,-500.0,0.00027397,7]
[345162853,1734073854483,-28690.0812944,0.00027397,2]
[345162855,1734073854492,-273.08883002,0.00027397,2]
[345162857,1734073854501,-181.41,0.000274,30]
[345162859,1734073854511,-4214.93,0.000274,30]
[345162861,1734073854520,-16184.32,0.000274,2]
[345162863,1734073854529,-151.0,0.000274,17]
[345162865,1734073854538,-3578.67322,0.000274,2]
[345162867,1734073854548,-151.0,0.000274,14]
[345162869,1734073854556,-257.87160403,0.00027413,2]
[345162871,1734073854566,-420.0,0.00027499,2]
[345162873,1734073854575,-2774.43784494,0.000275,30]
[345162874,1734073854584,-1876.57608398,0.000275,30]
[345162876,1734073854593,-329.0,0.000275,2]
[345162879,1734073854603,-151.0,0.00027588,5]
[345162881,1734073854615,-3457.0,0.000276,7]
[345162882,1734073854624,-1443.9,0.00027613,15]
[345162884,1734073854633,-245.18641905,0.00027647,2]
[345162886,1734073854642,-150.06,0.00027647,2]
[345162889,1734073854652,-150.06,0.00027647,2]
[345162891,1734073854662,-150.06,0.00027647,2]
[345162893,1734073854671,-150.06,0.00027647,2]
[345162895,1734073854680,-500.0,0.00027647,2]
[345162896,1734073854689,-150.06,0.00027647,2]
[345162899,1734073854699,-150.06,0.00027647,2]
[345162901,1734073854708,-500.0,0.00027671,2]
[345162903,1734073854716,-500.0,0.00027671,7]
[345162905,1734073854726,-252.17092761,0.00027671,7]
[345162907,1734073854735,-500.0,0.00027671,7]
[345162909,1734073854744,-500.0,0.00027671,7]
[345162911,1734073854754,-500.0,0.00027671,7]
[345162913,1734073854763,-413.26212874,0.00027671,7]
[345162915,1734073854772,-717.54,0.00027671,7]
[345162917,1734073854781,-500.0,0.00027671,7]
[345162919,1734073854790,-500.0,0.00027671,7]
[345162921,1734073854800,-174.77601335,0.00027671,7]
[345162923,1734073854809,-526.38,0.00027671,7]
[345162925,1734073854818,-500.0,0.00027671,7]
[345162927,1734073854827,-597.15570755,0.00027671,7]
[345162929,1734073854836,-500.0,0.00027671,7]
[345162931,1734073854844,-500.0,0.00027671,7]
[345162933,1734073854853,-505.50749341,0.00027671,7]
[345162935,1734073854862,-1060.98,0.00027671,7]
[345162937,1734073854873,-500.0,0.00027671,7]
[345162939,1734073854882,-500.0,0.00027671,7]
[345162941,1734073854891,-500.0,0.00027671,7]
[345162943,1734073854900,-500.0,0.00027671,7]
[345162945,1734073854909,-500.0,0.00027671,7]
[345162947,1734073854918,-500.0,0.00027671,7]
[345162949,1734073854927,-504.17,0.00027671,7]
[345162951,1734073854937,-500.0,0.00027671,7]
[345162953,1734073854946,-506.77,0.00027671,7]
[345162955,1734073854955,-500.0,0.00027671,7]
[345162957,1734073854964,-503.79769529,0.00027671,7]
[345162959,1734073854973,-500.0,0.00027671,7]
[345162961,1734073854982,-402.87747699,0.00027671,7]
[345162963,1734073854992,-500.0,0.00027671,7]
[345162965,1734073855002,-500.0,0.00027671,7]
[345162967,1734073855011,-500.0,0.00027671,7]
[345162969,1734073855019,-500.0,0.00027671,7]
[345162971,1734073855028,-710.23,0.00027671,7]
[345162973,1734073855037,-500.0,0.00027671,7]
[345162975,1734073855046,-500.0,0.00027671,7]
[345162976,1734073855055,-712.31,0.00027671,7]
[345162978,1734073855064,-500.0,0.00027671,7]
[345162981,1734073855073,-540.72,0.00027671,7]
[345162983,1734073855082,-779.87,0.00027671,7]
[345162985,1734073855092,-500.0,0.00027671,7]
[345162987,1734073855100,-500.0,0.00027671,7]
[345162989,1734073855109,-500.0,0.00027671,7]
[345162991,1734073855128,-500.0,0.00027671,7]
[345162993,1734073855138,-500.0,0.00027671,7]
[345162995,1734073855147,-500.0,0.00027671,7]
[345162997,1734073855156,-500.0,0.00027671,7]
[345162999,1734073855166,-550.49,0.00027671,7]
[345163001,1734073855176,-875.69,0.00027671,7]
[345163003,1734073855185,-500.0,0.00027671,7]
[345163005,1734073855194,-500.0,0.00027671,7]
[345163007,1734073855205,-205.8013427,0.00027671,7]
[345163009,1734073855216,-500.0,0.00027671,7]
[345163011,1734073855225,-500.0,0.00027671,7]
[345163013,1734073855235,-508.19574786,0.00027671,7]
[345163015,1734073855243,-500.0,0.00027671,7]
[345163017,1734073855253,-500.0,0.00027671,7]
[345163019,1734073855262,-718.22,0.00027671,7]
[345163021,1734073855273,-500.0,0.00027671,7]
[345163023,1734073855282,-1639.41,0.00027671,7]
[345163025,1734073855292,-500.0,0.00027671,7]
[345163027,1734073855301,-500.0,0.00027671,7]
[345163029,1734073855310,-500.0,0.00027671,7]
[345163031,1734073855321,-1045.63,0.00027671,7]
[345163033,1734073855330,-500.0,0.00027671,7]
[345163035,1734073855339,-926.35,0.00027671,7]
[345163037,1734073855349,-500.0,0.00027671,7]
[345163039,1734073855358,-196.73293169,0.00027671,7]
[345163041,1734073855371,-500.0,0.00027671,7]
[345163043,1734073855381,-500.0,0.00027671,7]
[345163044,1734073855390,-1759.92,0.00027671,7]
[345163045,1734073855400,-500.0,0.00027671,7]
[345163046,1734073855409,-500.0,0.00027671,7]
[345163047,1734073855418,-500.0,0.00027671,7]
[345163048,1734073855430,-500.0,0.00027671,7]
[345163049,1734073855440,-500.0,0.00027671,7]
[345163050,1734073855453,-541.72,0.00027671,7]
[345163051,1734073855461,-500.0,0.00027671,7]
[345163052,1734073855470,-500.0,0.00027671,7]
[345163053,1734073855479,-512.94,0.00027671,7]
[345163054,1734073855488,-609.25,0.00027671,7]
[345163056,1734073855498,-866.24,0.00027671,7]
[345163057,1734073855507,-583.41,0.00027671,7]
[345163059,1734073855516,-500.0,0.00027671,7]
[345163061,1734073855525,-500.0,0.00027671,7]
[345163063,1734073855534,-598.9,0.00027671,7]
[345163065,1734073855543,-1184.65,0.00027671,7]
[345163067,1734073855552,-534.17,0.00027671,7]
[345163069,1734073855561,-967.68,0.00027671,7]
[345163071,1734073855570,-500.0,0.00027671,7]
[345163073,1734073855579,-500.0,0.00027671,7]
[345163075,1734073855588,-500.0,0.00027671,7]
[345163077,1734073855598,-500.0,0.00027671,7]
[345163079,1734073855607,-1372.64,0.00027671,7]
[345163081,1734073855618,-548.8627476,0.00027671,7]
[345163083,1734073855627,-500.0,0.00027671,7]
[345163085,1734073855637,-500.0,0.00027671,7]
[345163087,1734073855646,-1188.86,0.00027671,7]
[345163089,1734073855655,-500.0,0.00027671,7]
[345163091,1734073855664,-500.0,0.00027671,7]
[345163093,1734073855674,-500.0,0.00027671,7]
[345163095,1734073855684,-500.0,0.00027671,7]
[345163097,1734073855694,-983.86,0.00027671,7]
[345163099,1734073855703,-1029.45,0.00027671,7]
[345163101,1734073855713,-500.0,0.00027671,7]
[345163103,1734073855723,-500.0,0.00027671,7]
[345163105,1734073855733,-500.0,0.00027671,7]
[345163107,1734073855743,-500.0,0.00027671,7]
[345163109,1734073855752,-500.0,0.00027671,7]
[345163111,1734073855762,-500.0,0.00027671,7]
[345163113,1734073855771,-500.0,0.00027671,7]
[345163115,1734073855782,-500.0,0.00027671,7]
[345163117,1734073855791,-500.0,0.00027671,7]
[345163119,1734073855800,-500.0,0.00027671,7]
[345163121,1734073855810,-500.0,0.00027671,7]
[345163123,1734073855820,-500.0,0.00027671,7]
[345163125,1734073855830,-625.88,0.00027671,7]
[345163127,1734073855839,-500.0,0.00027671,7]
[345163129,1734073855848,-500.0,0.00027671,7]
[345163131,1734073855858,-500.0,0.00027671,7]
[345163133,1734073855869,-500.0,0.00027671,7]
[345163135,1734073855878,-500.0,0.00027671,7]
[345163137,1734073855888,-539.73,0.00027671,7]
[345163139,1734073855897,-500.0,0.00027671,7]
[345163141,1734073855907,-500.0,0.00027671,7]
[345163143,1734073855916,-500.0,0.00027671,7]
[345163145,1734073855926,-500.0,0.00027671,7]
[345163147,1734073855936,-500.0,0.00027671,7]
[345163149,1734073855945,-1122.36,0.00027671,7]
[345163151,1734073855955,-500.0,0.00027671,7]
[345163153,1734073855964,-500.0,0.00027671,7]
[345163155,1734073855974,-754.87,0.00027671,7]
[345163157,1734073855984,-500.0,0.00027671,7]
[345163159,1734073855993,-500.0,0.00027671,7]
[345163161,1734073856002,-504.265019,0.00027671,7]
[345163163,1734073856012,-500.0,0.00027671,7]
[345163165,1734073856021,-500.0,0.00027671,7]
[345163167,1734073856031,-987.16,0.00027671,7]
[345163169,1734073856040,-500.0,0.00027671,7]
[345163171,1734073856050,-500.0,0.00027671,7]
[345163173,1734073856059,-500.0,0.00027671,7]
[345163175,1734073856068,-500.0,0.00027671,7]
[345163177,1734073856081,-500.0,0.00027671,7]
[345163179,1734073856092,-500.0,0.00027671,2]
[345163181,1734073856103,-500.0,0.00027671,7]
[345163183,1734073856112,-500.0,0.00027671,7]
[345163185,1734073856122,-764.89,0.00027671,7]
[345163186,1734073856132,-500.0,0.00027671,7]
[345163188,1734073856141,-500.0,0.00027671,7]
[345163190,1734073856151,-500.0,0.00027671,7]
[345163192,1734073856160,-500.0,0.00027671,7]
[345163194,1734073856170,-500.0,0.00027671,7]
[345163196,1734073856179,-748.21,0.00027671,7]
[345163199,1734073856189,-891.63,0.00027671,7]
[345163201,1734073856199,-500.0,0.00027671,7]
[345163203,1734073856209,-500.0,0.00027671,7]
[345163205,1734073856219,-1012.58,0.00027671,7]
[345163207,1734073856228,-500.0,0.00027671,7]
[345163209,1734073856237,-500.0,0.00027671,7]
[345163211,1734073856246,-500.0,0.00027671,7]
[345163213,1734073856255,-1562.4,0.00027671,7]
[345163215,1734073856264,-500.0,0.00027671,7]
[345163217,1734073856274,-500.0,0.00027671,7]
[345163219,1734073856284,-500.0,0.00027671,7]
[345163220,1734073856294,-1079.28,0.00027671,7]
[345163222,1734073856303,-500.0,0.00027671,7]
[345163225,1734073856313,-844.87,0.00027671,7]
[345163226,1734073856323,-500.0,0.00027671,7]
[345163228,1734073856332,-861.33,0.00027671,7]
[345163231,1734073856342,-500.0,0.00027671,7]
[345163232,1734073856352,-500.0,0.00027671,7]
[345163234,1734073856361,-500.0,0.00027671,7]
[345163236,1734073856374,-642.13,0.00027671,7]
[345163239,1734073856383,-500.0,0.00027671,7]
[345163241,1734073856393,-500.0,0.00027671,7]
[345163242,1734073856403,-580.55,0.00027671,7]
[345163244,1734073856412,-1754.92,0.00027671,7]
[345163246,1734073856422,-500.0,0.00027671,7]
[345163248,1734073856432,-420.13451594,0.00027671,7]
[345163250,1734073856442,-500.0,0.00027671,7]
[345163252,1734073856455,-500.0,0.00027671,7]
[345163255,1734073856465,-500.0,0.00027671,7]
[345163257,1734073856474,-500.0,0.00027671,7]
[345163259,1734073856484,-500.0,0.00027671,7]
[345163260,1734073856494,-500.0,0.00027671,7]
[345163262,1734073856504,-500.0,0.00027671,7]
[345163264,1734073856514,-575.38,0.00027671,7]
[345163267,1734073856524,-500.0,0.00027671,7]
[345163269,1734073856534,-500.0,0.00027671,7]
[345163286,1734073856699,-193.04997164,0.00027671,7]
[345163288,1734073856710,-1597.88,0.00027671,7]
[345163290,1734073856720,-545.17,0.00027671,7]